Workbook

Sheet Conjunto de datos
A1: Cuenta | B1: Categoría | C1: Asignación inicial | D1: Reformas | E1: Codificado | F1: Comprometido | G1: Devengado | H1: Ejecutado | I1: saldo_comprometido | J1: saldo_devengado | K1: Porcentaje ejecutado
A2: 5.1.01.05 | B2: Remuneraciones Unificadas | C2: 316,862.00 | D2: 0 | E2: 316,862.00 | F2: 48,183.33 | G2: 48,182.33 | H2: 44,289.34 | I2: 268,678.67 | J2: 268,679.67 | K2: =H2*100/C2 -> 13.98
A3: 5.1.01.06 | B3: Salarios Unificados | C3: 6,372.00 | D3: 0 | E3: 6,372.00 | F3: 1,062.00 | G3: 1,062.00 | H3: 890.45 | I3: 5,310.00 | J3: 5,310.00 | K3: =H3*100/C3 -> 13.97
A4: 5.1.02.03.01 | B4: Decimotercer Sueldo (Personal Permanente) | C4: 25,676.00 | D4: 0 | E4: 25,676.00 | F4: 106.69 | G4: 106.69 | H4: 106.69 | I4: 25,569.31 | J4: 25,569.31 | K4: 0.42
A5: 5.1.02.03.02 | B5: Decimotercer Sueldo (Personal Eventual) | C5: 755.00 | D5: 0 | E5: 755.00 | F5: 0 | G5: 0 | H5: 0 | I5: 755.00 | J5: 755.00 | K5: 0
A6: 5.1.02.03.03 | B6: Decimotercer Sueldo (Concejales) | C6: 9,750.00 | D6: 0 | E6: 9,750.00 | F6: 0 | G6: 0 | H6: 0 | I6: 9,750.00 | J6: 9,750.00 | K6: 0
A7: 5.1.02.04.01 | B7: Decimocuarto Sueldo (Personal Permanente) | C7: 7,131.12 | D7: 0 | E7: 7,131.12 | F7: 29.39 | G7: 29.39 | H7: 29.39 | I7: 7,101.73 | J7: 7,101.73 | K7: 0.41
A8: 5.1.02.04.02 | B8: Decimocuarto Sueldo (Personal Eventual) | C8: 475.00 | D8: 0 | E8: 475.00 | F8: 0 | G8: 0 | H8: 0 | I8: 475.00 | J8: 475.00 | K8: 0
A9: 5.1.02.04.03 | B9: Decimo Cuarto Sueldo- Concejales | C9: 2,575.00 | D9: 0 | E9: 2,575.00 | F9: 0 | G9: 0 | H9: 0 | I9: 2,575.00 | J9: 2,575.00 | K9: 0
A10: 5.1.04.01 | B10: Por Cargas Familiares | C10: 80.00 | D10: 0 | E10: 80.00 | F10: 5.26 | G10: 5.26 | H10: 5.26 | I10: 74.74 | J10: 74.74 | K10: 6.58
A11: 5.1.04.08 | B11: Subsidio De Antiguedad | C11: 111.48 | D11: 0 | E11: 111.48 | F11: 8.52 | G11: 8.52 | H11: 8.52 | I11: 102.96 | J11: 102.96 | K11: 7.64
A12: 5.1.05.10 | B12: Servicios Personales por Contrato | C12: 9,060.00 | D12: 0 | E12: 9,060.00 | F12: 1,510.00 | G12: 1,510.00 | H12: 1,746.45 | I12: 7,550.00 | J12: 7,550.00 | K12: 19.28
A13: 5.1.05.12 | B13: Subrogacion | C13: 750.00 | D13: 0 | E13: 750.00 | F13: 0 | G13: 0 | H13: 0 | I13: 750.00 | J13: 750.00 | K13: 0
A14: 5.1.05.13 | B14: Encargos | C14: 500.00 | D14: 0 | E14: 500.00 | F14: 0 | G14: 0 | H14: 0 | I14: 500.00 | J14: 500.00 | K14: 0
A15: 5.1.06.01.01 | B15: Aporte Patronal (Personal Permanente) | C15: 22,885.44 | D15: 0 | E15: 22,885.44 | F15: 3,898.07 | G15: 3,898.07 | H15: 1,841.84 | I15: 18,987.37 | J15: 18,987.37 | K15: 8.05
A16: 5.1.06.01.02 | B16: Aporte Patronal (Personal Eventual) | C16: 1,055.49 | D16: 0 | E16: 1,055.49 | F16: 175.92 | G16: 175.92 | H16: 87.96 | I16: 879.57 | J16: 879.57 | K16: 8.33
A17: 5.1.06.01.03 | B17: Aporte Patronal (Concejales) | C17: 22,885.44 | D17: 0 | E17: 22,885.44 | F17: 2,038.76 | G17: 2,038.76 | H17: 1,019.38 | I17: 20,846.68 | J17: 20,846.68 | K17: 4.45
A18: 5.1.06.02.01 | B18: Fondos De Reserva (Personal Permanente) | C18: 25,676.00 | D18: 0 | E18: 25,676.00 | F18: 2,367.85 | G18: 2,367.85 | H18: 2,367.85 | I18: 23,308.15 | J18: 23,308.15 | K18: 9.22
A19: 5.1.06.02.02 | B19: Fondos De Reserva (Personal Eventual) | C19: 755.00 | D19: 0 | E19: 755.00 | F19: 62.89 | G19: 62.89 | H19: 62.89 | I19: 692.11 | J19: 692.11 | K19: 8.33
A20: 5.1.06.02.03 | B20: Fondos De Reserva (Concejales) | C20: 8,750.00 | D20: 0 | E20: 8,750.00 | F20: 291.66 | G20: 291.66 | H20: 291.66 | I20: 8,458.34 | J20: 8,458.34 | K20: 3.33
A21: 5.1.07.07 | B21: Compensacion Por Vacaciones No Gozadas Por Cesacion De Funciones | C21: 5,000.00 | D21: 0 | E21: 5,000.00 | F21: 0 | G21: 0 | H21: 0 | I21: 5,000.00 | J21: 5,000.00 | K21: 0
A22: 5.3.01.01 | B22: Agua Potable | C22: 4,570.12 | D22: 0 | E22: 4,570.12 | F22: 1,802.59 | G22: 598.23 | H22: 598.23 | I22: 2,767.53 | J22: 3,971.89 | K22: 13.09
A23: 5.3.01.04 | B23: Energía Eléctrica | C23: 5,692.81 | D23: 0 | E23: 5,692.81 | F23: 1,594.57 | G23: 1,048.35 | H23: 1,048.35 | I23: 4,098.24 | J23: 4,644.46 | K23: 18.42
A24: 5.3.01.05 | B24: Telecomunicaciones | C24: 1,724.58 | D24: 0 | E24: 1,724.58 | F24: 1,667.60 | G24: 1,392.00 | H24: 1,392.00 | I24: 56.98 | J24: 332.58 | K24: 80.72
A25: 5.3.01.06 | B25: Servicio de Correo | C25: 20.00 | D25: 0 | E25: 20.00 | F25: 0 | G25: 0 | H25: 0 | I25: 20.00 | J25: 20.00 | K25: 0
A26: 5.3.02.04 | B26: Edición, Impresión, Reproducción y Publicaciones | C26: 5,000.00 | D26: 0 | E26: 5,000.00 | F26: 223.21 | G26: 0 | H26: 0 | I26: 4,776.79 | J26: 5,000.00 | K26: 0
A27: 5.3.02.07 | B27: Difusión, Información y Publicidad | C27: 16,000.00 | D27: 0 | E27: 16,000.00 | F27: 0 | G27: 0 | H27: 0 | I27: 16,000.00 | J27: 16,000.00 | K27: 0
A28: 5.3.02.46 | B28: Servicios De Identificación, Marcación, Autentificación, Rastreo, Monitoreo, Seguimiento | C28: 800.00 | D28: 0 | E28: 800.00 | F28: 800.00 | G28: 0 | H28: 0 | I28: 0 | J28: 800.00 | K28: 0
A29: 5.3.02.55 | B29: Combustible | C29: 7,000.00 | D29: 0 | E29: 7,000.00 | F29: 2,020.00 | G29: 994.65 | H29: 994.65 | I29: 4,980.00 | J29: 6,005.35 | K29: 14.21
A30: 5.3.03.01 | B30: Pasajes al Interior | C30: 300.00 | D30: 0 | E30: 300.00 | F30: 7.00 | G30: 0 | H30: 0 | I30: 293.00 | J30: 300.00 | K30: 0
A31: 5.3.03.03 | B31: Viáticos y Subsistencias en el Interior | C31: 3,000.00 | D31: 0 | E31: 3,000.00 | F31: 59.25 | G31: 0 | H31: 0 | I31: 2,940.75 | J31: 3,000.00 | K31: 0
A32: 5.3.04.02 | B32: Edificios, Locales, Residencias y Cableado Estructurado (Instalación, Mantenimiento y Reparación) | C32: 600.00 | D32: 0 | E32: 600.00 | F32: 0 | G32: 0 | H32: 0 | I32: 600.00 | J32: 600.00 | K32: 0
A33: 5.3.04.03 | B33: Mobiliarios | C33: 500.00 | D33: 0 | E33: 500.00 | F33: 0 | G33: 0 | H33: 0 | I33: 500.00 | J33: 500.00 | K33: 0
A34: 5.3.04.04 | B34: Maquinarias y Equipos | C34: 4,000.00 | D34: 0 | E34: 4,000.00 | F34: 1,250.08 | G34: 0 | H34: 0 | I34: 2,749.92 | J34: 4,000.00 | K34: 0
A35: 5.3.04.05 | B35: Vehículos (Servicio para Mantenimiento y Reparación) | C35: 400.00 | D35: 0 | E35: 400.00 | F35: 0 | G35: 0 | H35: 0 | I35: 400.00 | J35: 400.00 | K35: 0
A36: 5.3.06.01 | B36: Consultoría, Asesoría e Investigación Especializada | C36: 20,000.00 | D36: 0 | E36: 20,000.00 | F36: 0 | G36: 0 | H36: 0 | I36: 20,000.00 | J36: 20,000.00 | K36: 0
A37: 5.3.06.12 | B37: Capacitación A Servidores Públicos | C37: 10.00 | D37: 0 | E37: 10.00 | F37: 0 | G37: 0 | H37: 0 | I37: 10.00 | J37: 10.00 | K37: 0
A38: 5.3.07.02 | B38: Arrendamiento y Licencias de Uso de Paquetes Informáticos | C38: 6,700.00 | D38: 0 | E38: 6,700.00 | F38: 0 | G38: 0 | H38: 0 | I38: 6,700.00 | J38: 6,700.00 | K38: 0
A39: 5.3.07.04 | B39: Mantenimiento y Reparación de Equipos y Sistemas Informáticos | C39: 1,000.00 | D39: 0 | E39: 1,000.00 | F39: 0 | G39: 0 | H39: 0 | I39: 1,000.00 | J39: 1,000.00 | K39: 0
A40: 5.3.08.02.01 | B40: Vestuario Y Lenceria | C40: 4,000.00 | D40: 0 | E40: 4,000.00 | F40: 0 | G40: 0 | H40: 0 | I40: 4,000.00 | J40: 4,000.00 | K40: 0
A41: 5.3.08.03 | B41: Lubricantes | C41: 1,200.00 | D41: 0 | E41: 1,200.00 | F41: 0 | G41: 0 | H41: 0 | I41: 1,200.00 | J41: 1,200.00 | K41: 0
A42: 5.3.08.04 | B42: Materiales de Oficina | C42: 625.00 | D42: 0 | E42: 625.00 | F42: 0 | G42: 0 | H42: 0 | I42: 625.00 | J42: 625.00 | K42: 0
A43: 5.3.08.05 | B43: Materiales de Aseo | C43: 490.00 | D43: 0 | E43: 490.00 | F43: 0 | G43: 0 | H43: 0 | I43: 490.00 | J43: 490.00 | K43: 0
A44: 5.3.08.07 | B44: Materiales de Impresión, Fotografía, Reproducción y Publicaciones | C44: 2,000.00 | D44: 0 | E44: 2,000.00 | F44: 0 | G44: 0 | H44: 0 | I44: 2,000.00 | J44: 2,000.00 | K44: 0
A45: 5.3.08.11 | B45: Materiales de Construcción, Eléctricos, Plomería y Carpintería | C45: 500.00 | D45: 0 | E45: 500.00 | F45: 39.50 | G45: 0 | H45: 0 | I45: 460.50 | J45: 500.00 | K45: 0
A46: 5.3.08.13 | B46: Repuestos y Accesorios | C46: 1,200.00 | D46: 0 | E46: 1,200.00 | F46: 0 | G46: 0 | H46: 0 | I46: 1,200.00 | J46: 1,200.00 | K46: 0
A47: 5.3.14.03 | B47: Mobiliarios | C47: 8,000.00 | D47: 0 | E47: 8,000.00 | F47: 0 | G47: 0 | H47: 0 | I47: 8,000.00 | J47: 8,000.00 | K47: 0
A48: 5.3.14.04 | B48: Maquinarias y Equipos | C48: 100.00 | D48: 0 | E48: 100.00 | F48: 0 | G48: 0 | H48: 0 | I48: 100.00 | J48: 100.00 | K48: 0
A49: 5.3.14.06 | B49: Herramientas y Equipos Menores | C49: 100.00 | D49: 0 | E49: 100.00 | F49: 0 | G49: 0 | H49: 0 | I49: 100.00 | J49: 100.00 | K49: 0
A50: 5.3.14.07 | B50: Equipos, Sistemas Y Paquetes Informáticos | C50: 100.00 | D50: 0 | E50: 100.00 | F50: 0 | G50: 0 | H50: 0 | I50: 100.00 | J50: 100.00 | K50: 0
A51: 5.7.01.02.01 | B51: Tasas Generales, Impuestos, Contribuciones, Permisos, Licencias Y Patentes | C51: 700.00 | D51: 0 | E51: 700.00 | F51: 0 | G51: 0 | H51: 0 | I51: 700.00 | J51: 700.00 | K51: 0
A52: 5.7.02.01.01 | B52: Segruro (Personal) | C52: 1,200.00 | D52: 0 | E52: 1,200.00 | F52: 1,000.00 | G52: 1,000.00 | H52: 945.67 | I52: 200.00 | J52: 200.00 | K52: 78.81
A53: 5.7.02.01.02 | B53: Seguros (Bienes) | C53: 2,500.00 | D53: 0 | E53: 2,500.00 | F53: 1,000.00 | G53: 1,000.00 | H53: 1,000.00 | I53: 1,500.00 | J53: 1,500.00 | K53: 40.00
A54: 5.7.02.03 | B54: Comisiones Bancarias | C54: 50.00 | D54: 0 | E54: 50.00 | F54: 26.70 | G54: 26.70 | H54: 26.70 | I54: 23.30 | J54: 23.30 | K54: 53.40
A55: 5.7.02.06 | B55: Costas Judiciales, Trámites Notariales, Legalización De Documentos Y Arreglos Extrajudiciales | C55: 300.00 | D55: 0 | E55: 300.00 | F55: 0 | G55: 0 | H55: 0 | I55: 300.00 | J55: 300.00 | K55: 0
A56: 8.4.01.03.01 | B56: Mobiliario | C56: 500.00 | D56: 0 | E56: 500.00 | F56: 0 | G56: 0 | H56: 0 | I56: 500.00 | J56: 500.00 | K56: 0
A57: 8.4.01.04.01 | B57: Maquinaria Y Equipo | C57: 8,000.00 | D57: 0 | E57: 8,000.00 | F57: 0 | G57: 0 | H57: 0 | I57: 8,000.00 | J57: 8,000.00 | K57: 0
A58: 8.4.01.05 | B58: Vehículos | C58: 32,000.00 | D58: 0 | E58: 32,000.00 | F58: 0 | G58: 0 | H58: 0 | I58: 32,000.00 | J58: 32,000.00 | K58: 0
A59: 8.4.01.07.01 | B59: Equipos, Sistemas Y Paquetes Informáticos | C59: 10,000.00 | D59: 0 | E59: 10,000.00 | F59: 9,883.22 | G59: 3,063.14 | H59: 3,009.53 | I59: 116.78 | J59: 6,936.86 | K59: 30.10
A60: 8.4.01.11 | B60: Partes Y Repuestos | C60: 100.00 | D60: 0 | E60: 100.00 | F60: 0 | G60: 0 | H60: 0 | I60: 100.00 | J60: 100.00 | K60: 0
A61: 5.1.01.06 | B61: Salarios Unificados | C61: 49,392.00 | D61: 0 | E61: 49,392.00 | F61: 8,112.00 | G61: 8,112.00 | H61: 7,210.99 | I61: 41,280.00 | J61: 41,280.00 | K61: 14.60
A62: 5.1.02.03.01 | B62: Decimotercer Sueldo (Personal Permanente) | C62: 4,196.00 | D62: 0 | E62: 4,196.00 | F62: 88.50 | G62: 88.50 | H62: 88.50 | I62: 4,107.50 | J62: 4,107.50 | K62: 2.11
A63: 5.1.02.04.01 | B63: Decimocuarto Sueldo (Personal Permanente) | C63: 3,800.00 | D63: 0 | E63: 3,800.00 | F63: 76.66 | G63: 76.66 | H63: 76.66 | I63: 3,723.34 | J63: 3,723.34 | K63: 2.02
A64: 5.1.03.06 | B64: Refrigerio | C64: 300.00 | D64: 0 | E64: 300.00 | F64: 0 | G64: 0 | H64: 0 | I64: 300.00 | J64: 300.00 | K64: 0
A65: 5.1.04.01 | B65: Por Cargas Familiares | C65: 400.00 | D65: 0 | E65: 400.00 | F65: 202.74 | G65: 202.74 | H65: 202.74 | I65: 197.26 | J65: 197.26 | K65: 50.69
A66: 5.1.04.08 | B66: Subsidio De Antiguedad | C66: 400.00 | D66: 0 | E66: 400.00 | F66: 33.30 | G66: 33.30 | H66: 33.30 | I66: 366.70 | J66: 366.70 | K66: 8.33
A67: 5.1.05.09 | B67: Horas Extraordinarias y Suplementarias | C67: 200.00 | D67: 0 | E67: 200.00 | F67: 0 | G67: 0 | H67: 0 | I67: 200.00 | J67: 200.00 | K67: =H67*100/C67 -> 0
A68: 5.1.06.01.01 | B68: Aporte Patronal (Personal Permanente) | C68: 6,117.77 | D68: 0 | E68: 6,117.77 | F68: 985.60 | G68: 985.60 | H68: 492.80 | I68: 5,132.17 | J68: 5,132.17 | K68: 8.06
A69: 5.1.06.02.01 | B69: Fondos De Reserva (Personal Permanente) | C69: 4,196.00 | D69: 0 | E69: 4,196.00 | F69: 636.81 | G69: 636.81 | H69: 636.81 | I69: 3,559.19 | J69: 3,559.19 | K69: 15.18
A70: 5.3.01.05 | B70: Telecomunicaciones | C70: 100.00 | D70: 0 | E70: 100.00 | F70: 0 | G70: 0 | H70: 0 | I70: 100.00 | J70: 100.00 | K70: 0
A71: 5.3.01.06 | B71: Servicio De Correo | C71: 50.00 | D71: 0 | E71: 50.00 | F71: 0 | G71: 0 | H71: 0 | I71: 50.00 | J71: 50.00 | K71: 0
A72: 5.3.02.04 | B72: Edición, Impresión, Reproducción Y Publicaciones | C72: 500.00 | D72: 0 | E72: 500.00 | F72: 0 | G72: 0 | H72: 0 | I72: 500.00 | J72: 500.00 | K72: 0
A73: 5.3.02.07 | B73: Difusión, Información Y Publicidad | C73: 100.00 | D73: 0 | E73: 100.00 | F73: 0 | G73: 0 | H73: 0 | I73: 100.00 | J73: 100.00 | K73: 0
A74: 5.3.02.46 | B74: Servicios De Identificación, Marcación, Autentificación, Rastreo, Monitoreo, Seguimiento | C74: 4,950.00 | D74: 0 | E74: 4,950.00 | F74: 4,950.00 | G74: 0 | H74: 0 | I74: 0 | J74: 4,950.00 | K74: 0
A75: 5.3.02.55 | B75: Combustible | C75: 2,700.00 | D75: 0 | E75: 2,700.00 | F75: 830.00 | G75: 30.00 | H75: 30.00 | I75: 1,870.00 | J75: 2,670.00 | K75: 1.11
A76: 5.3.03.01 | B76: Pasajes Al Interior | C76: 200.00 | D76: 0 | E76: 200.00 | F76: 8.00 | G76: 8.00 | H76: 8.00 | I76: 192.00 | J76: 192.00 | K76: 4.00
A77: 5.3.03.03 | B77: Viáticos Y Subsistencias En El Interior | C77: 200.00 | D77: 0 | E77: 200.00 | F77: 90.60 | G77: 90.60 | H77: 90.60 | I77: 109.40 | J77: 109.40 | K77: 45.30
A78: 5.3.04.02 | B78: Edificios, Locales, Residencias Y Cableado Estructurado (Instalación, Mantenimiento Y Reparación) | C78: 100.00 | D78: 0 | E78: 100.00 | F78: 0 | G78: 0 | H78: 0 | I78: 100.00 | J78: 100.00 | K78: 0
A79: 5.3.04.05 | B79: Vehículos (Servicio para Mantenimiento y Reparación) | C79: 1,700.00 | D79: 0 | E79: 1,700.00 | F79: 0 | G79: 0 | H79: 0 | I79: 1,700.00 | J79: 1,700.00 | K79: 0
A80: 5.3.06.12 | B80: Capacitación A Servidores Públicos | C80: 500.00 | D80: 0 | E80: 500.00 | F80: 0 | G80: 0 | H80: 0 | I80: 500.00 | J80: 500.00 | K80: 0
A81: 5.3.07.04 | B81: Mantenimiento Y Reparación De Equipos Y Sistemas Informáticos | C81: 500.00 | D81: 0 | E81: 500.00 | F81: 0 | G81: 0 | H81: 0 | I81: 500.00 | J81: 500.00 | K81: 0
A82: 5.3.08.02.01 | B82: Vestuario Y Lenceria | C82: 5,000.00 | D82: 0 | E82: 5,000.00 | F82: 0 | G82: 0 | H82: 0 | I82: 5,000.00 | J82: 5,000.00 | K82: 0
A83: 5.3.08.03 | B83: Lubricantes | C83: 100.00 | D83: 0 | E83: 100.00 | F83: 0 | G83: 0 | H83: 0 | I83: 100.00 | J83: 100.00 | K83: 0
A84: 5.3.08.04 | B84: Materiales De Oficina | C84: 50.00 | D84: 0 | E84: 50.00 | F84: 0 | G84: 0 | H84: 0 | I84: 50.00 | J84: 50.00 | K84: 0
A85: 5.3.08.05 | B85: Materiales De Aseo | C85: 25,000.00 | D85: 0 | E85: 25,000.00 | F85: 12,294.88 | G85: 0 | H85: 0 | I85: 12,705.12 | J85: 25,000.00 | K85: 0
A86: 5.3.08.07 | B86: Materiales De Impresión, Fotografía, Reproducción Y Publicaciones | C86: 500.00 | D86: 0 | E86: 500.00 | F86: 0 | G86: 0 | H86: 0 | I86: 500.00 | J86: 500.00 | K86: 0
A87: 5.3.08.11 | B87: Materiales De Construcción, Eléctricos, Plomería Y Carpintería | C87: 250.00 | D87: 0 | E87: 250.00 | F87: 0 | G87: 0 | H87: 0 | I87: 250.00 | J87: 250.00 | K87: 0
A88: 5.3.08.13 | B88: Repuestos Y Accesorios | C88: 7,480.00 | D88: 0 | E88: 7,480.00 | F88: 0 | G88: 0 | H88: 0 | I88: 7,480.00 | J88: 7,480.00 | K88: 0
A89: 5.3.14.06 | B89: Herramientas Y Equipos Menores | C89: 450.00 | D89: 0 | E89: 450.00 | F89: 0 | G89: 0 | H89: 0 | I89: 450.00 | J89: 450.00 | K89: 0
A90: 5.7.01.02.02 | B90: Matriculación De Vehículos | C90: 1,500.00 | D90: 0 | E90: 1,500.00 | F90: 1,431.33 | G90: 1,282.19 | H90: 1,282.19 | I90: 68.67 | J90: 217.81 | K90: 85.48
A91: 5.7.02.01.01 | B91: Segruro (Personal) | C91: 5,000.00 | D91: 0 | E91: 5,000.00 | F91: 2,500.00 | G91: 2,500.00 | H91: 2,500.00 | I91: 2,500.00 | J91: 2,500.00 | K91: 50.00
A92: 5.7.02.01.02 | B92: Seguros (Bienes) | C92: 3,323.10 | D92: 0 | E92: 3,323.10 | F92: 2,000.00 | G92: 2,000.00 | H92: 2,000.00 | I92: 1,323.10 | J92: 1,323.10 | K92: 60.18
A93: 5.8.02.09 | B93: A Jubilados Patronales | C93: 8,288.00 | D93: 0 | E93: 8,288.00 | F93: 1,554.00 | G93: 1,036.00 | H93: 1,036.00 | I93: 6,734.00 | J93: 7,252.00 | K93: 12.50
A94: 8.4.01.03.01 | B94: Mobiliario | C94: 2,000.00 | D94: 0 | E94: 2,000.00 | F94: 0 | G94: 0 | H94: 0 | I94: 2,000.00 | J94: 2,000.00 | K94: 0
A95: 8.4.01.06 | B95: Herramientas | C95: 300.00 | D95: 0 | E95: 300.00 | F95: 0 | G95: 0 | H95: 0 | I95: 300.00 | J95: 300.00 | K95: 0
A96: 5.1.01.05 | B96: Remuneraciones Unificadas | C96: 24,125.11 | D96: 0 | E96: 24,125.11 | F96: 3,860.00 | G96: 3,860.00 | H96: 3,589.01 | I96: 20,265.11 | J96: 20,265.11 | K96: 14.88
A97: 5.1.02.03.01 | B97: Decimotercer Sueldo (Personal Permanente) | C97: 1,680.00 | D97: 0 | E97: 1,680.00 | F97: 0 | G97: 0 | H97: 0 | I97: 1,680.00 | J97: 1,680.00 | K97: 0
A98: 5.1.02.03.02 | B98: Decimotercer Sueldo (Personal Eventual) | C98: 570.00 | D98: 0 | E98: 570.00 | F98: 0 | G98: 0 | H98: 0 | I98: 570.00 | J98: 570.00 | K98: 0
A99: 5.1.02.04.01 | B99: Decimocuarto Sueldo (Personal Permanente) | C99: 1,425.00 | D99: 0 | E99: 1,425.00 | F99: 0 | G99: 0 | H99: 0 | I99: 1,425.00 | J99: 1,425.00 | K99: 0
A100: 5.1.02.04.02 | B100: Decimocuarto Sueldo (Personal Eventual) | C100: 475.00 | D100: 0 | E100: 475.00 | F100: 0 | G100: 0 | H100: 0 | I100: 475.00 | J100: 475.00 | K100: 0
A101: 5.1.05.10 | B101: Servicios Personales Por Contrato | C101: 16,680.00 | D101: 0 | E101: 16,680.00 | F101: 2,594.67 | G101: 2,594.67 | H101: 2,378.94 | I101: 14,085.33 | J101: 14,085.33 | K101: 14.26
A102: 5.1.06.01.01 | B102: Aporte Patronal (Personal Permanente) | C102: 2,810.58 | D102: 0 | E102: 2,810.58 | F102: 449.70 | G102: 449.70 | H102: 224.85 | I102: 2,360.88 | J102: 2,360.88 | K102: 8.00
A103: 5.1.06.01.02 | B103: Aporte Patronal (Personal Eventual) | C103: 1,943.22 | D103: 0 | E103: 1,943.22 | F103: 302.28 | G103: 302.28 | H103: 82.79 | I103: 1,640.94 | J103: 1,640.94 | K103: 4.26
A104: 5.1.06.02.01 | B104: Fondos De Reserva (Personal Permanente) | C104: 1,930.00 | D104: 0 | E104: 1,930.00 | F104: 136.66 | G104: 136.66 | H104: 136.66 | I104: 1,793.34 | J104: 1,793.34 | K104: 7.08
A105: 5.1.06.02.02 | B105: Fondos De Reserva (Personal Eventual) | C105: 1,390.00 | D105: 0 | E105: 1,390.00 | F105: 127.55 | G105: 127.55 | H105: 127.55 | I105: 1,262.45 | J105: 1,262.45 | K105: 9.18
A106: 5.1.07.07 | B106: Compensacion Por Vacaciones No Gozadas Por Cesacion De Funciones | C106: 500.00 | D106: 0 | E106: 500.00 | F106: 0 | G106: 0 | H106: 0 | I106: 500.00 | J106: 500.00 | K106: 0
A107: 5.3.01.05 | B107: Telecomunicaciones | C107: 10.00 | D107: 0 | E107: 10.00 | F107: 0 | G107: 0 | H107: 0 | I107: 10.00 | J107: 10.00 | K107: 0
A108: 5.3.01.06 | B108: Servicio De Correo | C108: 20.00 | D108: 0 | E108: 20.00 | F108: 0 | G108: 0 | H108: 0 | I108: 20.00 | J108: 20.00 | K108: 0
A109: 5.3.02.04 | B109: Edición, Impresión, Reproducción Y Publicaciones | C109: 500.00 | D109: 0 | E109: 500.00 | F109: 0 | G109: 0 | H109: 0 | I109: 500.00 | J109: 500.00 | K109: 0
A110: 5.3.02.07 | B110: Difusión, Información Y Publicidad | C110: 500.00 | D110: 0 | E110: 500.00 | F110: 0 | G110: 0 | H110: 0 | I110: 500.00 | J110: 500.00 | K110: 0
A111: 5.3.02.46 | B111: Servicios De Identificación, Marcación, Autentificación, Rastreo, Monitoreo, Seguimiento | C111: 200.00 | D111: 0 | E111: 200.00 | F111: 200.00 | G111: 0 | H111: 0 | I111: 0 | J111: 200.00 | K111: 0
A112: 5.3.03.01 | B112: Pasajes Al Interior | C112: 50.00 | D112: 0 | E112: 50.00 | F112: 0 | G112: 0 | H112: 0 | I112: 50.00 | J112: 50.00 | K112: 0
A113: 5.3.03.03 | B113: Viáticos Y Subsistencias En El Interior | C113: 100.00 | D113: 0 | E113: 100.00 | F113: 0 | G113: 0 | H113: 0 | I113: 100.00 | J113: 100.00 | K113: 0
A114: 5.3.04.02 | B114: Edificios, Locales, Residencias Y Cableado Estructurado (Instalación, Mantenimiento Y Reparación) | C114: 2,000.00 | D114: 0 | E114: 2,000.00 | F114: 0 | G114: 0 | H114: 0 | I114: 2,000.00 | J114: 2,000.00 | K114: 0
A115: 5.3.04.04 | B115: Maquinarias Y Equipos | C115: 50.00 | D115: 0 | E115: 50.00 | F115: 0 | G115: 0 | H115: 0 | I115: 50.00 | J115: 50.00 | K115: 0
A116: 5.3.06.12 | B116: Capacitación A Servidores Públicos | C116: 1,500.00 | D116: 0 | E116: 1,500.00 | F116: 0 | G116: 0 | H116: 0 | I116: 1,500.00 | J116: 1,500.00 | K116: 0
A117: 5.3.07.04 | B117: Mantenimiento Y Reparación De Equipos Y Sistemas Informáticos | C117: 500.00 | D117: 0 | E117: 500.00 | F117: 0 | G117: 0 | H117: 0 | I117: 500.00 | J117: 500.00 | K117: 0
A118: 5.3.08.01 | B118: Alimentos Y Bebidas | C118: 10.00 | D118: 0 | E118: 10.00 | F118: 0 | G118: 0 | H118: 0 | I118: 10.00 | J118: 10.00 | K118: 0
A119: 5.3.08.02.01 | B119: Vestuario Y Lenceria | C119: 3,580.00 | D119: 0 | E119: 3,580.00 | F119: 0 | G119: 0 | H119: 0 | I119: 3,580.00 | J119: 3,580.00 | K119: 0
A120: 5.3.08.03 | B120: Lubricantes | C120: 20.00 | D120: 0 | E120: 20.00 | F120: 0 | G120: 0 | H120: 0 | I120: 20.00 | J120: 20.00 | K120: 0
A121: 5.3.08.04 | B121: Materiales De Oficina | C121: 100.00 | D121: 0 | E121: 100.00 | F121: 0 | G121: 0 | H121: 0 | I121: 100.00 | J121: 100.00 | K121: 0
A122: 5.3.08.05 | B122: Materiales De Aseo | C122: 100.00 | D122: 0 | E122: 100.00 | F122: 0 | G122: 0 | H122: 0 | I122: 100.00 | J122: 100.00 | K122: 0
A123: 5.3.08.07 | B123: Materiales De Impresión, Fotografía, Reproducción Y Publicaciones | C123: 800.00 | D123: 0 | E123: 800.00 | F123: 0 | G123: 0 | H123: 0 | I123: 800.00 | J123: 800.00 | K123: 0
A124: 5.3.08.08 | B124: Instrumental Médico Menor | C124: 750.00 | D124: 0 | E124: 750.00 | F124: 0 | G124: 0 | H124: 0 | I124: 750.00 | J124: 750.00 | K124: 0
A125: 5.3.08.09 | B125: Medicamentos | C125: 2,000.00 | D125: 0 | E125: 2,000.00 | F125: 0 | G125: 0 | H125: 0 | I125: 2,000.00 | J125: 2,000.00 | K125: 0
A126: 5.3.08.11 | B126: Materiales De Construcción, Eléctricos, Plomería Y Carpintería | C126: 125.00 | D126: 0 | E126: 125.00 | F126: 5.00 | G126: 0 | H126: 0 | I126: 120.00 | J126: 125.00 | K126: 0
A127: 5.3.08.12 | B127: Materiales Didácticos | C127: 100.00 | D127: 0 | E127: 100.00 | F127: 0 | G127: 0 | H127: 0 | I127: 100.00 | J127: 100.00 | K127: 0
A128: 5.3.08.13 | B128: Repuestos Y Accesorios | C128: 15,000.00 | D128: 0 | E128: 15,000.00 | F128: 0 | G128: 0 | H128: 0 | I128: 15,000.00 | J128: 15,000.00 | K128: 0
A129: 5.3.08.19 | B129: Accesorios E Insumos Quimicos,Organicos | C129: 200.00 | D129: 0 | E129: 200.00 | F129: 0 | G129: 0 | H129: 0 | I129: 200.00 | J129: 200.00 | K129: 0
A130: 5.3.08.26 | B130: Dispositivos Médicos De Uso General | C130: 2,000.00 | D130: 0 | E130: 2,000.00 | F130: 0 | G130: 0 | H130: 0 | I130: 2,000.00 | J130: 2,000.00 | K130: 0
A131: 5.3.14.03 | B131: Mobiliarios | C131: 1,500.00 | D131: 0 | E131: 1,500.00 | F131: 0 | G131: 0 | H131: 0 | I131: 1,500.00 | J131: 1,500.00 | K131: =H131*100/C131 -> 0
A132: 5.3.14.06 | B132: Herramientas Y Equipos Menores | C132: 1,500.00 | D132: 0 | E132: 1,500.00 | F132: 0 | G132: 0 | H132: 0 | I132: 1,500.00 | J132: 1,500.00 | K132: 0
A133: 5.3.14.07 | B133: Equipos, Sistemas Y Paquetes Informáticos | C133: 100.00 | D133: 0 | E133: 100.00 | F133: 0 | G133: 0 | H133: 0 | I133: 100.00 | J133: 100.00 | K133: 0
A134: 5.7.01.02.01 | B134: Tasas Generales, Impuestos, Contribuciones, Permisos, Licencias Y Patentes | C134: 50.00 | D134: 0 | E134: 50.00 | F134: 0 | G134: 0 | H134: 0 | I134: 50.00 | J134: 50.00 | K134: 0
A135: 5.7.02.01.01 | B135: Segruro (Personal) | C135: 20.00 | D135: 0 | E135: 20.00 | F135: 10.00 | G135: 10.00 | H135: 10.00 | I135: 10.00 | J135: 10.00 | K135: 50.00
A136: 5.7.02.01.02 | B136: Seguros (Bienes) | C136: 700.00 | D136: 0 | E136: 700.00 | F136: 700.00 | G136: 700.00 | H136: 700.00 | I136: 0 | J136: 0 | K136: 100.00
A137: 8.4.01.03.01 | B137: Mobiliario | C137: 500.00 | D137: 0 | E137: 500.00 | F137: 0 | G137: 0 | H137: 0 | I137: 500.00 | J137: 500.00 | K137: 0
A138: 8.4.01.04.01 | B138: Maquinaria Y Equipo | C138: 500.00 | D138: 0 | E138: 500.00 | F138: 0 | G138: 0 | H138: 0 | I138: 500.00 | J138: 500.00 | K138: 0
A139: 8.4.01.07.01 | B139: Equipos, Sistemas Y Paquetes Informáticos | C139: 1,300.00 | D139: 0 | E139: 1,300.00 | F139: 0 | G139: 0 | H139: 0 | I139: 1,300.00 | J139: 1,300.00 | K139: 0
A140: 8.4.01.13 | B140: Equipos Médicos | C140: 4,500.00 | D140: 0 | E140: 4,500.00 | F140: 0 | G140: 0 | H140: 0 | I140: 4,500.00 | J140: 4,500.00 | K140: 0
A141: 5.1.01.05 | B141: Remuneraciones Unificadas | C141: 131,112.00 | D141: 0 | E141: 131,112.00 | F141: 21,852.00 | G141: 21,852.00 | H141: 19,698.28 | I141: 109,260.00 | J141: 109,260.00 | K141: 15.02
A142: 5.1.02.03.01 | B142: Decimotercer Sueldo (Personal Permanente) | C142: 10,926.00 | D142: 0 | E142: 10,926.00 | F142: 272.33 | G142: 272.33 | H142: 272.33 | I142: 10,653.67 | J142: 10,653.67 | K142: 2.49
A143: 5.1.02.03.02 | B143: Decimotercer Sueldo (Personal Eventual) | C143: 1,442.00 | D143: 0 | E143: 1,442.00 | F143: 0 | G143: 0 | H143: 0 | I143: 1,442.00 | J143: 1,442.00 | K143: 0
A144: 5.1.02.04.01 | B144: Decimocuarto Sueldo (Personal Permanente) | C144: 6,650.00 | D144: 0 | E144: 6,650.00 | F144: 286.22 | G144: 286.22 | H144: 286.22 | I144: 6,363.78 | J144: 6,363.78 | K144: 4.30
A145: 5.1.02.04.02 | B145: Decimocuarto Sueldo (Personal Eventual) | C145: 950.00 | D145: 0 | E145: 950.00 | F145: 0 | G145: 0 | H145: 0 | I145: 950.00 | J145: 950.00 | K145: 0
A146: 5.1.05.10 | B146: Servicios Personales Por Contrato | C146: 17,304.00 | D146: 0 | E146: 17,304.00 | F146: 2,692.67 | G146: 2,692.67 | H146: 2,156.59 | I146: 14,611.33 | J146: 14,611.33 | K146: 12.46
A147: 5.1.05.12 | B147: Subrogacion | C147: 100.00 | D147: 0 | E147: 100.00 | F147: 0 | G147: 0 | H147: 0 | I147: 100.00 | J147: 100.00 | K147: 0
A148: 5.1.05.13 | B148: Encargos | C148: 100.00 | D148: 0 | E148: 100.00 | F148: 0 | G148: 0 | H148: 0 | I148: 100.00 | J148: 100.00 | K148: 0
A149: 5.1.06.01.01 | B149: Aporte Patronal (Personal Permanente) | C149: 15,274.55 | D149: 0 | E149: 15,274.55 | F149: 2,545.76 | G149: 2,545.76 | H149: 1,272.88 | I149: 12,728.79 | J149: 12,728.79 | K149: 8.33
A150: 5.1.06.01.02 | B150: Aporte Patronal (Personal Eventual) | C150: 2,016.00 | D150: 0 | E150: 2,016.00 | F150: 313.69 | G150: 313.69 | H150: 130.01 | I150: 1,702.31 | J150: 1,702.31 | K150: 6.45
A151: 5.1.06.02.01 | B151: Fondos De Reserva (Personal Permanente) | C151: 10,926.00 | D151: 0 | E151: 10,926.00 | F151: 1,428.68 | G151: 1,428.68 | H151: 1,428.68 | I151: 9,497.32 | J151: 9,497.32 | K151: 13.08
A152: 5.1.06.02.02 | B152: Fondos De Reserva (Personal Eventual) | C152: 1,442.00 | D152: 0 | E152: 1,442.00 | F152: 224.38 | G152: 224.38 | H152: 224.38 | I152: 1,217.62 | J152: 1,217.62 | K152: 15.56
A153: 5.1.07.07 | B153: Compensacion Por Vacaciones No Gozadas Por Cesacion De Funciones | C153: 2,500.00 | D153: 0 | E153: 2,500.00 | F153: 2,220.00 | G153: 2,220.00 | H153: 2,220.00 | I153: 280.00 | J153: 280.00 | K153: 88.80
A154: 5.3.01.01 | B154: Agua Potable | C154: 100.00 | D154: 0 | E154: 100.00 | F154: 0 | G154: 0 | H154: 0 | I154: 100.00 | J154: 100.00 | K154: 0
A155: 5.3.01.04 | B155: Energía Eléctrica | C155: 1,100.00 | D155: 0 | E155: 1,100.00 | F155: 0 | G155: 0 | H155: 0 | I155: 1,100.00 | J155: 1,100.00 | K155: 0
A156: 5.3.01.05 | B156: Telecomunicaciones | C156: 3,500.00 | D156: 0 | E156: 3,500.00 | F156: 1,536.61 | G156: 780.41 | H156: 780.41 | I156: 1,963.39 | J156: 2,719.59 | K156: 22.30
A157: 5.3.01.06 | B157: Servicio De Correo | C157: 100.00 | D157: 0 | E157: 100.00 | F157: 0 | G157: 0 | H157: 0 | I157: 100.00 | J157: 100.00 | K157: 0
A158: 5.3.02.04 | B158: Edición, Impresión, Reproducción Y Publicaciones | C158: 5,500.00 | D158: 0 | E158: 5,500.00 | F158: 0 | G158: 0 | H158: 0 | I158: 5,500.00 | J158: 5,500.00 | K158: 0
A159: 5.3.02.07 | B159: Difusión, Información Y Publicidad | C159: 100.00 | D159: 0 | E159: 100.00 | F159: 0 | G159: 0 | H159: 0 | I159: 100.00 | J159: 100.00 | K159: 0
A160: 5.3.02.55 | B160: Combustible | C160: 800.00 | D160: 0 | E160: 800.00 | F160: 160.00 | G160: 160.00 | H160: 160.00 | I160: 640.00 | J160: 640.00 | K160: 20.00
A161: 5.3.03.01 | B161: Pasajes Al Interior | C161: 50.00 | D161: 0 | E161: 50.00 | F161: 0 | G161: 0 | H161: 0 | I161: 50.00 | J161: 50.00 | K161: 0
A162: 5.3.03.03 | B162: Viáticos Y Subsistencias En El Interior | C162: 100.00 | D162: 0 | E162: 100.00 | F162: 0 | G162: 0 | H162: 0 | I162: 100.00 | J162: 100.00 | K162: 0
A163: 5.3.04.03 | B163: Mobiliarios | C163: 600.00 | D163: 0 | E163: 600.00 | F163: 0 | G163: 0 | H163: 0 | I163: 600.00 | J163: 600.00 | K163: 0
A164: 5.3.06.12 | B164: Capacitación A Servidores Públicos | C164: 800.00 | D164: 0 | E164: 800.00 | F164: 0 | G164: 0 | H164: 0 | I164: 800.00 | J164: 800.00 | K164: 0
A165: 5.3.07.04 | B165: Mantenimiento Y Reparación De Equipos Y Sistemas Informáticos | C165: 100.00 | D165: 0 | E165: 100.00 | F165: 0 | G165: 0 | H165: 0 | I165: 100.00 | J165: 100.00 | K165: 0
A166: 5.3.08.02.01 | B166: Vestuario Y Lenceria | C166: 2,800.00 | D166: 0 | E166: 2,800.00 | F166: 0 | G166: 0 | H166: 0 | I166: 2,800.00 | J166: 2,800.00 | K166: 0
A167: 5.3.08.03 | B167: Lubricantes | C167: 50.00 | D167: 0 | E167: 50.00 | F167: 0 | G167: 0 | H167: 0 | I167: 50.00 | J167: 50.00 | K167: 0
A168: 5.3.08.04 | B168: Materiales de Oficina | C168: 16,000.00 | D168: 0 | E168: 16,000.00 | F168: 6,516.14 | G168: 0 | H168: 0 | I168: 9,483.86 | J168: 16,000.00 | K168: 0
A169: 5.3.08.07 | B169: Materiales De Impresión, Fotografía, Reproducción Y Publicaciones | C169: 1,500.00 | D169: 0 | E169: 1,500.00 | F169: 0 | G169: 0 | H169: 0 | I169: 1,500.00 | J169: 1,500.00 | K169: 0
A170: 5.3.08.11 | B170: Materiales De Construcción, Eléctricos, Plomería Y Carpintería | C170: 250.00 | D170: 0 | E170: 250.00 | F170: 54.00 | G170: 0 | H170: 0 | I170: 196.00 | J170: 250.00 | K170: 0
A171: 5.3.08.13 | B171: Repuestos Y Accesorios | C171: 50.00 | D171: 0 | E171: 50.00 | F171: 0 | G171: 0 | H171: 0 | I171: 50.00 | J171: 50.00 | K171: 0
A172: 5.3.14.04 | B172: Maquinarias Y Equipos | C172: 10.00 | D172: 0 | E172: 10.00 | F172: 0 | G172: 0 | H172: 0 | I172: 10.00 | J172: 10.00 | K172: 0
A173: 5.3.14.07 | B173: Equipos, Sistemas y Paquetes Informáticos | C173: 10.00 | D173: 0 | E173: 10.00 | F173: 0 | G173: 0 | H173: 0 | I173: 10.00 | J173: 10.00 | K173: 0
A174: 5.6.01.06 | B174: Descuentos, Comisiones y Otros Cargos en Títulos y Valores | C174: 5,158.97 | D174: 0 | E174: 5,158.97 | F174: 5,037.44 | G174: 4,727.99 | H174: 4,746.93 | I174: 121.53 | J174: 430.98 | K174: 92.01
A175: 5.7.02.01.01 | B175: Segruro (Personal) | C175: 800.00 | D175: 0 | E175: 800.00 | F175: 800.00 | G175: 800.00 | H175: 800.00 | I175: 0 | J175: 0 | K175: 100.00
A176: 5.7.02.01.02 | B176: Seguros (Bienes) | C176: 1,000.00 | D176: 0 | E176: 1,000.00 | F176: 1,000.00 | G176: 1,000.00 | H176: 1,000.00 | I176: 0 | J176: 0 | K176: 100.00
A177: 5.7.02.03 | B177: Comisiones Bancarias | C177: 1,500.00 | D177: 0 | E177: 1,500.00 | F177: 567.20 | G177: 0 | H177: 0 | I177: 932.80 | J177: 1,500.00 | K177: 0
A178: 5.7.02.19 | B178: Devoluciones | C178: 2,500.00 | D178: 0 | E178: 2,500.00 | F178: 90.00 | G178: 40.00 | H178: 40.00 | I178: 2,410.00 | J178: 2,460.00 | K178: 1.60
A179: 8.4.01.03.01 | B179: Mobiliario | C179: 1,500.00 | D179: 0 | E179: 1,500.00 | F179: 0 | G179: 0 | H179: 0 | I179: 1,500.00 | J179: 1,500.00 | K179: 0
A180: 8.4.01.04.01 | B180: Maquinaria Y Equipo | C180: 200.00 | D180: 0 | E180: 200.00 | F180: 0 | G180: 0 | H180: 0 | I180: 200.00 | J180: 200.00 | K180: 0
A181: 8.4.01.07.01 | B181: Equipos, Sistemas Y Paquetes Informáticos | C181: 8,200.00 | D181: 0 | E181: 8,200.00 | F181: 0 | G181: 0 | H181: 0 | I181: 8,200.00 | J181: 8,200.00 | K181: 0
A182: 5.1.01.05 | B182: Remuneraciones Unificadas | C182: 52,512.00 | D182: 0 | E182: 52,512.00 | F182: 8,316.60 | G182: 8,130.00 | H182: 8,064.92 | I182: 44,195.40 | J182: 44,382.00 | K182: 15.36
A183: 5.1.02.03.01 | B183: Decimotercer Sueldo (Personal Permanente) | C183: 4,376.00 | D183: 0 | E183: 4,376.00 | F183: 119.22 | G183: 0 | H183: 0 | I183: 4,256.78 | J183: 4,376.00 | K183: 0
A184: 5.1.02.04.01 | B184: Decimocuarto Sueldo (Personal Permanente) | C184: 2,375.00 | D184: 0 | E184: 2,375.00 | F184: 241.50 | G184: 0 | H184: 0 | I184: 2,133.50 | J184: 2,375.00 | K184: 0
A185: 5.1.05.10 | B185: Servicios Personales Por Contrato | C185: 100.00 | D185: 0 | E185: 100.00 | F185: 0 | G185: 0 | H185: 0 | I185: 100.00 | J185: 100.00 | K185: 0
A186: 5.1.05.12 | B186: Subrogacion | C186: 1,500.00 | D186: 0 | E186: 1,500.00 | F186: 0 | G186: 0 | H186: 0 | I186: 1,500.00 | J186: 1,500.00 | K186: 0
A187: 5.1.05.13 | B187: Encargos | C187: 500.00 | D187: 0 | E187: 500.00 | F187: 0 | G187: 0 | H187: 0 | I187: 500.00 | J187: 500.00 | K187: 0
A188: 5.1.06.01.01 | B188: Aporte Patronal (Personal Permanente) | C188: 6,117.65 | D188: 0 | E188: 6,117.65 | F188: 968.88 | G188: 947.14 | H188: 509.80 | I188: 5,148.77 | J188: 5,170.51 | K188: 8.33
A189: 5.1.06.02.01 | B189: Fondos De Reserva (Personal Permanente) | C189: 4,376.00 | D189: 0 | E189: 4,376.00 | F189: 677.49 | G189: 677.49 | H189: 312.83 | I189: 3,698.51 | J189: 3,698.51 | K189: 7.15
A190: 5.1.07.07 | B190: Compensacion Por Vacaciones No Gozadas Por Cesacion De Funciones | C190: 1,920.00 | D190: 0 | E190: 1,920.00 | F190: 0 | G190: 0 | H190: 0 | I190: 1,920.00 | J190: 1,920.00 | K190: 0
A191: 5.3.01.06 | B191: Servicio De Correo | C191: 100.00 | D191: 0 | E191: 100.00 | F191: 0 | G191: 0 | H191: 0 | I191: 100.00 | J191: 100.00 | K191: 0
A192: 5.3.02.04 | B192: Edición, Impresión, Reproducción Y Publicaciones | C192: 500.00 | D192: 0 | E192: 500.00 | F192: 0 | G192: 0 | H192: 0 | I192: 500.00 | J192: 500.00 | K192: 0
A193: 5.3.02.07 | B193: Difusión, Información Y Publicidad | C193: 100.00 | D193: 0 | E193: 100.00 | F193: 0 | G193: 0 | H193: 0 | I193: 100.00 | J193: 100.00 | K193: 0
A194: 5.3.02.30 | B194: Digtalización De Información Y Datos Públicos | C194: 3,500.00 | D194: 0 | E194: 3,500.00 | F194: 0 | G194: 0 | H194: 0 | I194: 3,500.00 | J194: 3,500.00 | K194: 0
A195: 5.3.02.55 | B195: Combustible | C195: 100.00 | D195: 0 | E195: 100.00 | F195: 0 | G195: 0 | H195: 0 | I195: 100.00 | J195: 100.00 | K195: =H195*100/C195 -> 0
A196: 5.3.03.01 | B196: Pasajes Al Interior | C196: 50.00 | D196: 0 | E196: 50.00 | F196: 0 | G196: 0 | H196: 0 | I196: 50.00 | J196: 50.00 | K196: 0
A197: 5.3.03.03 | B197: Viáticos Y Subsistencias En El Interior | C197: 200.00 | D197: 0 | E197: 200.00 | F197: 0 | G197: 0 | H197: 0 | I197: 200.00 | J197: 200.00 | K197: 0
A198: 5.3.04.02 | B198: Edificios, Locales, Residencias y Cableado Estructurado (Instalación, Mantenimiento y Reparación) | C198: 100.00 | D198: 0 | E198: 100.00 | F198: 0 | G198: 0 | H198: 0 | I198: 100.00 | J198: 100.00 | K198: 0
A199: 5.3.06.01 | B199: Consultoría, Asesoría E Investigación Especializada | C199: 10.00 | D199: 0 | E199: 10.00 | F199: 0 | G199: 0 | H199: 0 | I199: 10.00 | J199: 10.00 | K199: 0
A200: 5.3.06.12 | B200: Capacitación A Servidores Públicos | C200: 400.00 | D200: 0 | E200: 400.00 | F200: 0 | G200: 0 | H200: 0 | I200: 400.00 | J200: 400.00 | K200: 0
... 804 more rows

Sheet Metadatos
A1: FECHA ACTUALIZACIÓN DE LA INFORMACIÓN | B1: 2024-03-31
A2: PERIODICIDAD DE ACTUALIZACIÓN DE LA INFORMACIÓN | B2: MENSUAL
A3: UNIDAD POSEEDORA DE LA INFORMACIÓN | B3: ÁREA FINANIERA
A4: PERSONA RESPONSABLE DE LA UNIDAD POSEEDORA DE LA INFORMACIÓN | B4: Ing. Deysi Arias
A5: CORREO ELECTRÓNICO DE LA PERSONA RESPONSABLE DE LA UNIDAD POSEEDORA DE LA INFORMACIÓN | B5: gadmch.financiero@gmail.com
A6: NÚMERO TELEFÓNICO DE LA PERSONA RESPONSABLE DE LA UNIDAD POSEEDORA DE LA INFORMACIÓN | B6: (03) 2936-244-245 EXTENSIÓN 108
A7: LICENCIA | B7: CC-BY-4.0

Sheet Diccionario
A1: Institución | B1: Nombre de la Entidad
A2: Descripción | B2: Presupuesto Institucional
A3: Nombre del campo | B3: Descripción de campo
A4: Cuenta | B4: Código identificador asignado a la categoría, descripción o partida presupuestaria
A5: Categoría | B5: Categoría a la que pertenece el elemento presupuestario
A6: Descripción | B6: Descripción del elemento presupuestario
A7: Asignado | B7: Monto inicialmente asignado al elemento presupuestario
A8: Modificado | B8: Monto modificado o ajustado posteriormente al elemento presupuestario
A9: Codificado | B9: Monto codificado o asignado específicamente al elemento presupuestario
A10: Monto certificado | B10: Monto certificado o aprobado para el elemento presupuestario
A11: Comprometido | B11: Monto comprometido o reservado para el elemento presupuestario
A12: Devengado | B12: Monto devengado o registrado como gasto efectuado en relación al elemento presupuestario
A13: Pagado | B13: Monto pagado o desembolsado hasta la fecha en relación al elemento presupuestario
A14: Saldo por comprometer | B14: Saldo restante por comprometer o reservar para el elemento presupuestario
A15: Saldo por devengar | B15: Saldo restante por devengar o registrar como gasto en relación al elemento presupuestario
A16: Saldo por pagar | B16: Saldo restante por pagar o desembolsar en relación al elemento presupuestario
A17: Porcentaje de ejecución | B17: Porcentaje de ejecución o avance del gasto en relación al monto total asignado al elemento presupuestario
